bitfinex-derivatives/quotes_ETHF0:USTF0_20250607
["timestamp","ask_amount","ask_price","bid_price","bid_amount"]
[1749265467047,1.37821834,2485.1,2485.0,0.81026707]
[1749265467251,0.06951834,2485.1,2485.0,0.81026707]
[1749265467457,0.06951834,2485.1,2485.0,0.00603707]
[1749265467949,0.06951834,2485.1,2485.0,0.81026707]
[1749265469450,3.2078,2486.2,2485.0,31.29763707]
[1749265469645,0.80388,2486.1,2485.8,0.80395]
[1749265469847,0.80391,2486.0,2485.8,0.80395]
[1749265470050,1.3333,2486.1,2485.9,0.80391]
[1749265470346,0.80389,2486.1,2485.7,8.1448]
[1749265470546,0.80389,2486.1,2485.8,0.80394]
[1749265470750,1.3333,2486.2,2486.0,0.80389]
[1749265470951,1.3333,2486.2,2485.7,8.94878]
[1749265471150,1.3333,2486.2,2485.7,8.1448]
[1749265471350,0.80388,2486.1,2485.8,0.80397]
[1749265471650,1.3333,2486.2,2485.8,0.80397]
[1749265471846,0.80387,2486.1,2485.8,0.80397]
[1749265472353,1.3333,2486.2,2485.7,8.1448]
[1749265472555,0.80395,2485.9,2485.7,8.94879]
[1749265472752,2.18902,2486.0,2485.7,8.94879]
[1749265472944,1.3851,2486.0,2485.7,3.2078]
[1749265473448,1.3851,2486.0,2485.7,4.01179]
[1749265473653,1.3851,2486.0,2485.7,3.2078]
[1749265474254,0.80397,2485.8,2485.7,3.2078]
[1749265474847,0.80406,2485.5,2485.4,4.936]
[1749265475154,2.0202,2485.7,2485.4,5.74008]
[1749265475350,2.0202,2485.7,2485.4,4.936]
[1749265475752,0.80406,2485.5,2485.4,4.936]
[1749265475950,0.80411,2485.4,2485.2,0.80415]
[1749265476155,0.6389,2485.6,2485.0,28.21333707]
[1749265476156,1.2813,2485.5,2485.0,28.21333707]
[1749265476354,1.2813,2485.5,2485.0,3.21383707]
[1749265476355,0.80419,2485.1,2485.0,3.21383707]
[1749265476656,0.80419,2485.1,2485.0,0.00603707]
[1749265477352,0.80432,2484.7,2484.6,3.2078]
[1749265477558,0.80439,2484.5,2484.4,4.936]
[1749265479053,2.08567,2484.6,2484.4,4.936]
[1749265479764,0.00603707,2484.7,2484.4,4.936]
[1749265480251,0.00603707,2484.7,2484.6,0.80436]
[1749265480454,0.81037707,2484.7,2484.6,4.937]
[1749265480658,0.81037707,2484.7,2484.2,0.00603707]
[1749265480857,0.80439,2484.5,2484.3,4.937]
[1749265481162,2.78358,2484.6,2484.3,4.937]
[1749265481554,2.78357,2484.6,2484.3,4.937]
[1749265481754,2.78357,2484.6,2484.3,0.80443]
[1749265481951,0.80441,2484.5,2484.2,5.74751707]
[1749265482152,2.16041,2484.5,2484.2,5.74751707]
[1749265483061,2.16041,2484.5,2484.3,0.80443]
[1749265483062,1.356,2484.5,2484.3,0.80443]
[1749265483256,0.80445,2484.3,2484.2,4.94303707]
[1749265483657,0.80445,2484.3,2484.2,0.00603707]
[1749265483856,2.16045,2484.3,2484.2,0.00603707]
[1749265486459,3.8755,2484.4,2484.2,0.00603707]
[1749265486953,3.2078,2484.4,2484.2,0.81050707]
[1749265487351,4.01223,2484.4,2484.2,0.00603707]
[1749265487755,4.01224,2484.4,2484.2,0.00603707]
[1749265488153,0.80445,2484.3,2484.2,0.00603707]
[1749265488356,4.01225,2484.4,2484.2,0.00603707]
[1749265489158,0.80445,2484.3,2484.2,0.00603707]
[1749265489355,3.2078,2484.4,2484.2,0.00603707]
[1749265489356,0.00603707,2484.7,2484.2,0.00603707]
[1749265489557,0.00603707,2484.7,2484.4,3.2078]
[1749265489751,0.00603707,2484.7,2484.5,4.934]
[1749265489960,0.00603707,2484.7,2484.5,5.73837]
[1749265490556,0.00603707,2484.7,2484.5,5.73838]
[1749265490753,0.00603707,2484.7,2484.5,4.934]
[1749265490957,1.34083707,2484.7,2484.5,4.934]
[1749265491155,1.34083707,2484.7,2484.5,5.73839]
[1749265491466,1.34083707,2484.7,2484.5,4.934]
[1749265491964,1.34083707,2484.7,2484.5,5.73837]
[1749265492662,1.34083707,2484.7,2484.4,3.2078]
[1749265492864,1.97353707,2484.7,2484.4,8.1408]
[1749265493063,2.77787707,2484.7,2484.4,8.9452]
[1749265493362,0.80436,2484.6,2484.4,8.1408]
[1749265493665,1.3372,2484.5,2484.4,8.94522]
[1749265493862,1.3372,2484.5,2484.4,8.1408]
[1749265494063,0.00603707,2484.7,2484.4,13.1408]
[1749265494266,0.00603707,2484.7,2484.6,0.80436]
[1749265495863,0.00603707,2484.7,2484.6,5.73736]
[1749265500663,0.00603707,2484.7,2484.6,2.10496]
[1749265500865,0.00603707,2484.7,2484.6,4.933]
[1749265501064,0.00603707,2484.7,2484.6,5.73736]
[1749265501265,0.00603707,2484.7,2484.6,4.933]
[1749265501466,0.00603707,2484.7,2484.6,5.73736]
[1749265503168,0.00603707,2484.7,2484.6,7.12386]
[1749265503373,0.00603707,2484.7,2484.6,5.73736]
[1749265504474,0.07555541,2484.7,2484.6,5.73736]
[1749265504674,0.07555541,2484.7,2484.6,7.12386]
[1749265506375,0.07555541,2484.7,2484.6,5.73736]
[1749265506574,0.75425541,2484.7,2484.6,5.73736]
[1749265506878,0.07555541,2484.7,2484.6,5.73736]
[1749265511379,2.0099,2485.9,2485.1,0.80419]
[1749265511583,0.80419,2485.1,2485.0,4.933]
[1749265511780,1.9756,2485.2,2484.8,3.2078]
[1749265511985,0.80426,2484.9,2484.8,3.2078]
[1749265513085,2.17095,2485.0,2484.8,3.2078]
[1749265513282,2.17095,2485.0,2484.8,4.01209]
[1749265513482,0.80426,2484.9,2484.8,3.2078]
[1749265513683,2.17096,2484.9,2484.8,3.2078]
[1749265514183,1.3667,2484.9,2484.8,4.01209]
[1749265514582,1.3667,2484.9,2484.8,3.2078]
[1749265514775,1.3667,2484.9,2484.8,4.01209]
[1749265514985,1.3667,2484.9,2484.8,3.2078]
[1749265515485,2.17096,2484.9,2484.8,3.2078]
[1749265515879,0.8044,2484.5,2484.2,0.81050707]
[1749265516580,3.8504,2484.8,2484.2,0.81048707]
[1749265516778,0.80441,2484.5,2484.2,0.00603707]
[1749265516983,0.80437,2484.6,2484.3,0.80445]
[1749265517187,0.06951834,2484.7,2484.2,0.00603707]
[1749265517387,0.06951834,2484.7,2484.5,0.80438]
[1749265517581,0.06951834,2484.7,2484.2,0.00603707]
[1749265518083,0.06951834,2484.7,2484.5,0.80436]
[1749265518283,0.87385834,2484.7,2484.2,0.00603707]
[1749265518585,0.06951834,2484.7,2484.4,0.8044]
[1749265518785,0.80436,2484.6,2484.4,0.8044]
[1749265519584,0.87385834,2484.7,2484.5,0.80439]
[1749265519785,0.80436,2484.6,2484.4,0.8044]
[1749265520489,0.80434,2484.7,2484.5,0.80439]
[1749265520689,0.06951834,2484.5,2484.4,0.8044]
[1749265521783,0.80445,2484.3,2484.2,0.00603707]
[1749265522285,1.08777476,2484.3,2484.2,0.00603707]
[1749265522485,3.27731834,2484.5,2484.2,0.00603707]
[1749265522686,4.08171834,2484.5,2484.3,0.80444]
[1749265522892,0.80443,2484.4,2484.2,0.81050707]
[1749265523185,4.08171834,2484.5,2484.3,0.80445]
[1749265523387,0.80442,2484.4,2484.2,0.81050707]
[1749265523988,0.6797,2484.3,2484.2,0.81050707]
[1749265524585,0.6797,2484.3,2484.2,0.00603707]
[1749265524787,0.6797,2484.3,2484.2,0.81051707]
[1749265526885,3.27731834,2484.5,2484.2,0.00603707]
[1749265527193,0.80442,2484.4,2484.2,0.81050707]
[1749265528295,0.80445,2484.3,2484.2,0.00603707]
[1749265528993,2.09425,2484.3,2484.2,0.00603707]
[1749265533699,1.2898,2484.3,2484.2,0.00603707]
[1749265533897,2.09425,2484.3,2484.2,0.00603707]
[1749265536004,2.16376834,2484.3,2484.2,0.00603707]
[1749265538404,1.35931834,2484.3,2484.2,0.00603707]
[1749265538798,0.06951834,2484.3,2484.2,0.81051707]
[1749265541297,0.06951834,2484.3,2484.2,0.00603707]
[1749265541499,0.87396834,2484.3,2484.2,0.00603707]
[1749265541699,2.24696834,2484.3,2484.2,0.00603707]
[1749265546800,3.3698957,2484.3,2484.2,0.00603707]
[1749265547199,2.5654457,2484.3,2484.2,0.00603707]
[1749265547402,0.06951834,2484.3,2484.2,0.81051707]
[1749265548106,0.06951834,2484.3,2484.2,0.00603707]
[1749265548608,0.06951834,2484.3,2484.2,0.81051707]
[1749265549206,0.06951834,2484.3,2484.2,0.00603707]
[1749265549808,0.06951834,2484.3,2484.2,0.81051707]
[1749265552904,0.06951834,2484.3,2484.2,1.46861707]
[1749265553100,0.06951834,2484.3,2484.2,2.75361707]
[1749265553299,0.06951834,2484.3,2484.2,7.75361707]
[1749265556610,1.3739,2485.0,2484.7,0.80431]
[1749265556804,0.00603707,2485.1,2484.6,4.943]
[1749265557111,0.00603707,2485.1,2485.0,0.80423]
[1749265557609,0.00603707,2485.1,2485.0,5.74723]
[1749265558608,3.2078,2485.7,2485.0,13.1508]
[1749265558811,3.2078,2485.7,2485.6,0.80403]
[1749265559604,3.2078,2485.7,2485.5,4.943]
[1749265559801,0.8041,2485.4,2485.3,4.942]
[1749265560006,0.8041,2485.4,2485.1,0.80418]
[1749265560210,0.8041,2485.4,2485.1,5.74618]
[1749265560812,3.2078,2485.3,2485.1,4.942]
[1749265561109,1.3248,2485.2,2484.9,4.942]
[1749265561413,0.80422,2485.0,2484.9,4.942]
[1749265561799,1.957,2485.2,2484.7,24.338]
[1749265562005,2.12906,2484.9,2484.8,4.942]
[1749265562210,0.80432,2484.8,2484.7,4.942]
[1749265562409,2.76132,2484.8,2484.7,4.942]
[1749265562913,1.957,2484.8,2484.7,5.74632]
[1749265563116,0.6322,2484.8,2484.7,5.74632]
[1749265563316,3.2078,2485.0,2484.8,0.80428]
[1749265563711,3.2078,2485.0,2484.4,3.9034]
[1749265564013,0.80419,2485.1,2484.8,0.80427]
[1749265564215,3.2078,2485.1,2484.8,4.942]
[1749265564512,0.80428,2484.9,2484.8,4.942]
[1749265565510,2.18685834,2485.0,2484.8,4.942]
[1749265566116,2.18685834,2485.0,2484.8,5.74629]
[1749265566412,2.18685834,2485.0,2484.8,4.942]
[1749265566813,2.18684834,2485.0,2484.8,4.942]
[1749265567014,0.80426,2484.9,2484.8,4.942]
[1749265567214,2.18685834,2485.0,2484.7,0.80431]
[1749265567414,2.18685834,2485.0,2484.8,4.942]
[1749265568321,0.80426,2484.9,2484.8,4.942]
[1749265569214,0.87375834,2485.0,2484.8,5.74629]
[1749265569416,0.87375834,2485.0,2484.8,4.942]
[1749265569616,0.06951834,2485.0,2484.9,0.80426]
[1749265571122,0.06951834,2485.0,2484.8,5.74627]
[1749265571313,0.06951834,2485.0,2484.9,0.80426]
[1749265573620,0.06951834,2485.0,2484.9,1.50256]
[1749265578424,3.2078,2486.1,2484.9,30.0303]
[1749265578623,0.804,2485.8,2485.3,3.2078]
[1749265578922,0.804,2485.8,2485.6,0.80403]
[1749265579113,3.50503,2486.0,2485.8,0.80396]
[1749265579319,2.7011,2486.0,2485.9,0.80393]
[1749265579523,2.7011,2486.0,2485.6,3.2078]
[1749265579722,2.7011,2486.0,2485.8,0.80395]
[1749265580027,2.7011,2486.0,2485.9,0.80393]
[1749265580428,2.7011,2486.0,2485.7,4.922]
[1749265581028,2.7011,2486.0,2485.9,0.80393]
[1749265581925,2.7011,2486.0,2485.7,4.922]
[1749265582426,1.3714,2486.0,2485.9,0.80393]
[1749265582727,4.01165,2486.2,2485.9,0.80393]
[1749265582728,1.3186,2486.4,2486.3,0.8038]
[1749265582927,0.6432,2486.4,2486.3,5.7258]
[1749265583435,0.15999802,2486.5,2486.4,0.80377]
[1749265583828,0.15999802,2486.5,2486.3,5.72578]
[1749265584437,0.15999802,2486.5,2486.4,0.80377]
[1749265585736,0.15999802,2486.5,2486.4,2.08297]
[1749265587230,3.2078,2487.1,2486.4,6.9572]
[1749265587438,0.80359,2487.0,2486.5,3.21383707]
[1749265587629,0.80359,2487.0,2486.5,4.49303707]
[1749265587830,4.5885,2487.1,2486.7,0.80365]
[1749265588038,0.80361,2486.9,2486.8,4.921]
[1749265588235,4.5885,2487.1,2486.8,4.921]
[1749265588439,0.80358,2487.0,2486.8,5.72463]
[1749265588738,0.80361,2486.9,2486.8,4.921]
[1749265588938,0.80359,2487.0,2486.8,4.921]
[1749265589136,3.2078,2487.1,2486.8,4.921]
[1749265589333,3.2078,2487.7,2486.8,37.4518]
[1749265589535,3.2078,2487.7,2487.1,3.2078]
[1749265589741,2.6647,2487.6,2486.9,2.0628]
[1749265590040,0.80353,2487.2,2486.9,0.6963]
[1749265590243,0.8035,2487.3,2487.0,4.92]
[1749265590436,1.3005,2487.2,2487.0,4.92]
[1749265590636,0.80358,2487.0,2486.8,24.323]
[1749265590839,1.3005,2487.2,2486.8,24.323]
[1749265591141,1.3005,2487.2,2486.9,4.92]
[1749265591142,0.80355,2487.1,2486.9,4.92]
[1749265591343,1.3005,2487.2,2486.9,4.92]
[1749265591537,1.3005,2487.2,2486.9,5.72359]
[1749265591734,0.8036,2487.0,2486.8,24.323]
[1749265591939,3.8845,2487.1,2486.9,4.92]
[1749265592244,2.83958,2487.0,2486.9,4.92]
[1749265592431,2.83958,2487.0,2486.8,24.323]
[1749265592432,0.80361,2486.9,2486.8,24.323]
[1749265592637,2.17281,2486.9,2486.8,29.243]
[1749265592837,1.3692,2486.9,2486.8,29.243]
[1749265593039,2.17281,2486.9,2486.8,24.323]
[1749265593240,2.17281,2486.9,2486.8,29.243]
[1749265593644,1.3692,2486.9,2486.8,29.243]
[1749265593843,2.17281,2486.9,2486.8,24.323]
[1749265594143,1.3692,2486.9,2486.8,29.243]
[1749265594848,2.17281,2486.9,2486.8,29.243]
[1749265596347,2.17281,2486.9,2486.8,24.323]
[1749265596538,0.80367,2486.8,2486.7,4.92]
[1749265596745,0.80367,2486.8,2486.5,0.00603707]
[1749265596746,4.5366,2486.8,2486.5,0.00603707]
[1749265597146,0.80371,2486.7,2486.5,0.00603707]
[1749265597347,1.3164,2486.6,2486.5,0.00603707]
[1749265597650,1.9663,2486.6,2486.5,0.00603707]
[1749265597850,2.77001,2486.6,2486.5,0.00603707]
[1749265598455,0.6499,2486.6,2486.5,0.80977707]
[1749265600353,1.3164,2486.9,2486.5,0.80977707]
[1749265600354,1.3164,2486.9,2486.5,0.00603707]
[1749265600555,1.9666,2486.9,2486.5,0.00603707]
[1749265600948,2.77021,2486.9,2486.7,0.80365]
[1749265601148,1.9666,2486.9,2486.7,0.80365]
[1749265601850,2.77022,2486.9,2486.7,0.80365]
[1749265603451,0.80366,2486.8,2486.6,0.80369]
[1749265603757,1.2942,2486.7,2486.6,0.80369]
[1749265604957,1.2942,2486.7,2486.5,0.00603707]
[1749265605158,0.80371,2486.6,2486.5,0.00603707]
[1749265605859,2.09788,2486.7,2486.5,0.80974707]
[1749265606351,0.80371,2486.6,2486.5,0.00603707]
[1749265606556,2.07491,2486.6,2486.5,0.00603707]
[1749265608649,3.2078,2486.8,2486.5,0.00603707]
[1749265608955,0.80371,2486.6,2486.5,0.00603707]
[1749265609156,1.94941276,2486.6,2486.5,0.00603707]
[1749265609350,3.21641276,2486.6,2486.5,0.00603707]
[1749265609562,0.80395,2485.9,2485.7,5.05]
[1749265609761,2.00949,2486.4,2485.7,5.05]
[1749265609762,0.80397,2485.8,2485.7,5.05]
[1749265610159,4.01177,2485.8,2485.7,5.05]
[1749265610659,0.80403,2485.6,2485.5,0.00603707]
[1749265611252,2.07103,2485.6,2485.5,0.00603707]
[1749265611454,3.21715499,2485.6,2485.5,0.00603707]
[1749265611654,2.07103,2485.6,2485.5,0.00603707]
[1749265612959,1.267,2485.6,2485.5,0.00603707]
[1749265613260,1.48681,2485.7,2485.5,0.00603707]
[1749265613463,0.6828,2485.7,2485.5,0.81007707]
[1749265613765,1.4868,2485.7,2485.5,0.00603707]
[1749265614265,0.6828,2485.7,2485.5,0.81008707]
[1749265614464,0.6828,2485.7,2485.6,0.80403]
[1749265614658,3.2078,2485.8,2485.6,0.80403]
[1749265615364,3.2078,2485.8,2485.7,0.804]
[1749265616867,3.2078,2485.8,2485.6,5.85502]
[1749265617473,0.80395,2485.9,2485.6,5.85502]
[1749265617664,0.80397,2485.8,2485.6,5.85502]
[1749265617867,0.80395,2485.9,2485.7,0.80399]
[1749265618274,0.80395,2485.9,2485.6,5.85502]
[1749265618479,2.87165707,2486.0,2485.6,5.051]
[1749265618674,0.80393,2485.9,2485.7,0.80397]
[1749265619568,2.06773707,2486.0,2485.5,0.81008707]
[1749265619776,0.80402,2485.7,2485.5,5.86108707]
[1749265620175,0.80399,2485.8,2485.5,5.86108707]
[1749265620375,0.80399,2485.8,2485.6,0.80402]
[1749265620878,0.804,2485.7,2485.5,5.86107707]
[1749265621074,0.80403,2485.6,2485.5,5.05703707]
[1749265621974,1.46213,2485.6,2485.5,0.00603707]
[1749265623477,0.6581,2485.6,2485.5,0.00603707]
[1749265623983,0.6581,2485.6,2485.5,0.81009707]
[1749265624175,4.01178,2485.8,2485.6,0.80402]
[1749265624375,3.2078,2485.8,2485.6,0.80402]
[1749265624578,3.2078,2485.8,2485.7,0.804]
[1749265624777,4.5997,2485.8,2485.7,0.804]
[1749265624988,3.2078,2485.8,2485.5,0.00603707]
[1749265625178,3.2078,2485.8,2485.7,0.804]
[1749265626682,4.01147,2486.8,2486.5,0.80371]
[1749265626984,4.01147,2486.8,2486.5,5.052]
[1749265626985,4.65146,2486.8,2486.5,5.052]
[1749265627180,2.0079,2486.7,2486.5,5.85572]
[1749265627684,2.81159,2486.7,2486.5,5.052]
[1749265627878,2.8116,2486.7,2486.5,5.85573]
[1749265628281,2.0079,2486.7,2486.5,5.052]
[1749265628580,2.81159,2486.7,2486.5,5.85572]
[1749265629788,0.80371,2486.6,2486.5,5.052]
[1749265630084,2.15021,2486.6,2486.5,5.052]
[1749265630286,0.80374,2486.5,2486.4,0.00603707]
[1749265630479,2.10264,2486.5,2486.4,0.00603707]
[1749265639587,2.17215834,2486.5,2486.4,0.00603707]
[1749265640892,1.36841834,2486.5,2486.4,0.80980707]
[1749265641098,2.17215834,2486.5,2486.4,0.00603707]
[1749265641293,1.36841834,2486.5,2486.4,0.80980707]
[1749265641594,0.06951834,2486.5,2486.4,0.80980707]
[1749265643996,0.06951834,2486.5,2486.4,5.86380707]
[1749265644888,0.06951834,2486.5,2486.4,6.53600707]
[1749265645393,3.2078,2486.8,2486.7,0.80367]
[1749265646189,4.01146,2486.8,2486.6,0.80369]
[1749265646389,3.2078,2486.8,2486.4,5.73223707]
[1749265646593,0.06951834,2486.5,2486.4,6.53600707]
[1749265646790,1.3982,2487.1,2487.0,0.80358]
[1749265646999,2.14733,2487.2,2487.0,0.80358]
[1749265647510,1.3438,2487.2,2487.1,0.80355]
[1749265647684,2.14731,2487.2,2487.0,0.80356]
[1749265647889,1.3438,2487.2,2487.0,0.80358]
[1749265648085,2.14731,2487.2,2486.9,5.053]
[1749265648289,1.3438,2487.2,2486.9,5.053]
[1749265648595,2.14732,2487.2,2487.0,0.80356]
[1749265648797,0.80355,2487.1,2486.9,5.85659]
[1749265648991,1.2628,2487.1,2486.9,5.053]
[1749265649191,2.06637,2487.1,2486.9,5.85661]
[1749265649992,0.80358,2487.0,2486.9,5.053]
[1749265650194,1.2628,2487.1,2486.9,5.053]
[1749265650195,2.06637,2487.1,2486.9,5.85661]
[1749265650395,0.80358,2487.0,2486.9,5.053]
[1749265650693,2.06637,2487.1,2486.9,5.85659]
[1749265651397,1.2628,2487.1,2487.0,0.80358]
[1749265651698,1.3438,2487.2,2487.1,0.80355]
[1749265652195,2.14732,2487.2,2487.0,0.80356]
[1749265652499,1.3438,2487.2,2486.9,5.053]
[1749265652692,1.3438,2487.2,2487.1,0.80355]
[1749265652893,2.14731,2487.2,2487.0,0.80356]
[1749265653595,1.3438,2487.2,2487.1,0.80355]
[1749265654199,2.14731,2487.2,2487.1,0.80355]
[1749265654401,2.14731,2487.2,2487.0,0.80356]
[1749265654600,3.2078,2487.5,2486.9,8.2608]
[1749265654795,0.06951834,2487.1,2487.0,0.80356]
[1749265655799,0.06951834,2487.1,2486.9,8.2608]
[1749265655800,0.80358,2487.0,2486.9,5.053]
[1749265656009,3.38398,2487.0,2486.9,5.053]
[1749265656197,3.384,2487.0,2486.8,0.80364]
[1749265656497,2.5804,2487.0,2486.9,0.80361]
[1749265657492,1.3125,2487.0,2486.9,0.80361]
[1749265660998,0.06951834,2487.1,2487.0,0.80358]
[1749265665906,0.06951834,2487.1,2486.8,4.01143]
[1749265666203,2.0335,2487.0,2486.8,0.80363]
[1749265666404,2.0335,2487.0,2486.9,0.80361]
[1749265667600,2.0335,2487.0,2486.8,0.80363]
[1749265667797,2.83708,2487.0,2486.8,0.80362]
[1749265668099,0.06951834,2487.1,2487.0,0.80358]
[1749265668298,0.87307834,2487.1,2487.0,4.964]
[1749265668494,0.8036,2487.0,2486.8,3.2078]
[1749265668706,1.43511,2486.9,2486.8,3.2078]
[1749265669195,2.75861,2486.9,2486.8,3.2078]
[1749265670507,1.955,2486.9,2486.8,3.2078]
[1749265670806,2.75861,2486.9,2486.8,3.2078]
[1749265673600,1.955,2486.9,2486.8,3.2078]
[1749265673902,2.75861,2486.9,2486.8,3.2078]
[1749265675401,0.80365,2486.8,2486.6,5.76769]
[1749265676507,0.80368,2486.7,2486.6,4.964]
[1749265676808,0.80374,2486.5,2486.4,0.00603707]
[1749265677512,2.15014,2486.5,2486.4,0.00603707]
[1749265678705,1.3464,2486.5,2486.4,0.80980707]
[1749265679306,5.35794,2486.5,2486.4,0.00603707]
[1749265679702,2.15014,2486.5,2486.4,0.00603707]
[1749265680104,1.3464,2486.5,2486.4,0.80980707]
[1749265680302,1.47462,2486.6,2486.4,0.00603707]
[1749265680303,0.6709,2486.6,2486.4,0.00603707]
[1749265680506,0.6709,2486.6,2486.5,0.80374]
[1749265680707,4.01146,2486.8,2486.6,0.8037]
[1749265681004,4.01146,2486.8,2486.4,0.00603707]
[1749265681005,3.2078,2486.8,2486.7,0.80368]
[1749265681199,3.2078,2486.8,2486.4,1.94443707]
[1749265681397,0.80368,2486.7,2486.5,0.80372]
[1749265681602,0.80374,2486.5,2486.4,0.00603707]
[1749265682005,0.80371,2486.6,2486.4,0.00603707]
[1749265682310,1.3172,2486.7,2486.4,0.00603707]
[1749265682511,3.2078,2486.8,2486.4,0.00603707]
[1749265682813,0.80368,2486.7,2486.5,0.80371]
[1749265683108,0.80368,2486.7,2486.4,2.10338707]
[1749265683502,1.2909,2486.9,2486.4,2.10338707]
[1749265683503,1.2909,2486.9,2486.4,0.00603707]
[1749265683704,0.80374,2486.5,2486.4,0.00603707]
[1749265684012,0.80373,2486.6,2486.4,0.80978707]
[1749265684514,0.80374,2486.5,2486.4,0.00603707]
[1749265684913,0.80369,2486.7,2486.5,0.80372]
[1749265685211,0.80371,2486.6,2486.4,0.80978707]
[1749265685410,1.2909,2486.9,2486.4,0.80978707]
[1749265685808,0.80373,2486.6,2486.4,0.80978707]
[1749265686011,1.2909,2486.9,2486.4,0.00603707]
[1749265686012,0.80374,2486.5,2486.4,0.00603707]
[1749265686512,0.06951834,2486.7,2486.4,0.00603707]
[1749265686915,0.80371,2486.6,2486.5,0.80374]
[1749265687207,0.06951834,2486.7,2486.6,0.80371]
[1749265687608,0.06951834,2486.7,2486.4,1.29663707]
[1749265687812,0.87320834,2486.7,2486.5,0.80371]
[1749265688014,0.06951834,2486.7,2486.6,0.80371]
[1749265688208,0.06951834,2486.7,2486.4,1.29663707]
[1749265688413,0.06951834,2486.7,2486.6,4.964]
[1749265688615,0.06951834,2486.7,2486.6,5.76771]
[1749265689216,0.87319834,2486.7,2486.6,5.76771]
[1749265689416,0.87319834,2486.7,2486.6,4.964]
[1749265691009,0.06951834,2486.7,2486.6,4.964]
[1749265691311,0.06951834,2486.7,2486.6,5.76771]
[1749265691506,0.06951834,2486.7,2486.6,4.964]
[1749265691706,0.87319834,2486.7,2486.6,4.964]
[1749265692006,0.06951834,2486.7,2486.6,4.964]
[1749265692815,0.06951834,2486.7,2486.6,5.76771]
[1749265693112,0.87319834,2486.7,2486.6,4.964]
[1749265694412,0.80374,2486.5,2486.4,0.00603707]
[1749265695212,1.48744,2486.5,2486.4,0.00603707]
[1749265695513,2.65787739,2486.5,2486.4,0.00603707]
[1749265696714,0.6837,2486.5,2486.4,0.00603707]
[1749265697009,1.48744,2486.5,2486.4,0.00603707]
[1749265697417,1.8541046,2486.5,2486.4,0.00603707]
[1749265697820,2.6578446,2486.5,2486.4,0.00603707]
[1749265698215,1.8541046,2486.5,2486.4,0.00603707]
[1749265698715,2.6578446,2486.5,2486.4,0.00603707]
[1749265700518,0.6837,2486.5,2486.4,0.80980707]
[1749265700919,3.2078,2486.8,2486.4,3.21383707]
[1749265701222,1.16773361,2486.7,2486.4,3.21383707]
[1749265701413,4.64576,2486.8,2486.6,0.80369]
[1749265701720,1.16774968,2486.7,2486.6,0.80371]
[1749265702217,4.64576,2486.8,2486.4,3.21383707]
[1749265702218,3.8421,2486.8,2486.7,0.80367]
[1749265702818,0.6343,2486.8,2486.7,0.80367]
[1749265703418,0.80369,2486.7,2486.5,0.80372]
[1749265703619,2.07858,2486.7,2486.6,4.923]
[1749265703922,2.07859,2486.7,2486.5,5.72672]
[1749265704317,0.80371,2486.6,2486.5,4.923]
[1749265704522,1.2749,2486.6,2486.5,5.72674]
[1749265705617,0.6343,2486.8,2486.6,0.80368]
[1749265705817,0.6343,2486.8,2486.7,0.80367]
[1749265709217,1.9924,2486.8,2486.7,0.80367]
[1749265709416,0.6343,2486.8,2486.7,0.80367]
[1749265710423,0.6315,2486.9,2486.5,4.923]
[1749265710623,1.45665,2486.8,2486.6,0.80369]
[1749265710823,2.16178,2486.7,2486.6,4.923]
[1749265711732,2.16178,2486.7,2486.6,5.72671]
[1749265711920,1.3581,2486.7,2486.6,5.72671]
[1749265712724,2.16177,2486.7,2486.6,4.923]
[1749265713825,1.3581,2486.7,2486.6,5.72671]
[1749265714624,1.42761834,2486.7,2486.6,5.72671]
[1749265717430,0.06951834,2486.7,2486.6,5.72671]
[1749265720329,1.45711834,2486.7,2486.6,5.72671]
[1749265723234,1.45711834,2486.7,2486.4,3.87653707]
[1749265723235,2.26079834,2486.7,2486.5,5.72672]
[1749265723533,0.80374,2486.5,2486.4,0.00603707]
[1749265723730,1.97230495,2486.5,2486.4,0.00603707]
[1749265723930,2.17074,2486.5,2486.4,0.00603707]
[1749265724229,3.33935323,2486.5,2486.4,0.00603707]
[1749265725423,9.54498323,2486.5,2485.6,5.5751]
[1749265725624,0.804,2485.7,2485.6,4.923]
[1749265726132,2.0084,2486.0,2485.3,3.2078]
[1749265726427,1.81721698,2485.9,2485.4,0.00603707]
[1749265726629,0.80403,2485.7,2485.4,0.81010707]
[1749265727030,0.80403,2485.6,2485.4,0.81010707]
[1749265727226,0.80401,2485.7,2485.4,0.81010707]
[1749265727426,1.3634,2485.8,2485.4,0.00603707]
[1749265727827,2.16738,2485.8,2485.6,0.80402]
[1749265728129,2.16737,2485.8,2485.6,0.80402]
[1749265728833,1.3634,2485.8,2485.6,0.80402]
[1749265729034,1.3634,2485.8,2485.5,0.80405]
[1749265729234,1.3634,2485.8,2485.4,0.81011707]
[1749265729732,1.3634,2485.8,2485.4,0.81012707]
[1749265730036,0.80402,2485.7,2485.4,0.81011707]
[1749265730429,0.6481,2485.6,2485.5,0.80406]
[1749265732229,0.06951834,2485.7,2485.6,0.80403]
[1749265732828,3.2078,2486.4,2485.6,5.0]
[1749265733034,0.6481,2486.5,2486.4,0.80377]
[1749265733636,0.6481,2486.5,2486.2,4.917]
[1749265733833,0.6481,2486.5,2486.3,0.80379]
[1749265735441,0.6481,2486.5,2486.4,0.80377]
[1749265735641,0.6481,2486.5,2486.3,0.80379]
[1749265735834,0.6481,2486.5,2486.4,0.80377]
[1749265736241,0.6481,2486.5,2486.2,4.917]
[1749265736441,0.6481,2486.5,2486.4,0.80377]
[1749265736641,0.6481,2486.5,2486.3,0.80379]
[1749265736940,0.6481,2486.5,2486.2,4.917]
[1749265737140,0.6481,2486.5,2486.3,0.80378]
[1749265737341,0.6481,2486.5,2486.4,0.80377]